Cogmind - Beta 13 @@@ ROGUE MODE // 2024.03.06 @ 16:08:18 Player: SX_7 Result: Destroyed by G-34 Mercenary with Small Laser Performance ------------- Evolutions (1) 500 Regions Visited (3) 600 Robots Destroyed (25) 125 Value Destroyed (595) 595 Prototype IDs (0) 0 Alien Tech Used (0) 0 Bonus (68) 68 TOTAL SCORE: 1888 Bonus ------- Follower Combat Kills 68 Cogmind --------- Core Integrity 0/400 Matter 300/300 Energy 100/100 System Corruption 0% Temperature Cool (60) Movement Core (100) Ox1 Location -9/Materials Parts ------- > --- POWER (1) -------- (None) > --- PROPULSION (2) --- (None) > --- UTILITY (4) ------ Small Storage Unit Structural Scanner Visual Processing Unit > --- WEAPON (2) ------- (None) > --- INVENTORY (8) ---- Improved Ion Engine Aluminum Leg Improved Aluminum Leg Improved Aluminum Leg Seismic Detector ECM Suite Rocket Launcher Datajack Peak State ------------ > --- POWER ------------ Improved Ion Engine > --- PROPULSION ------- Aluminum Leg Improved Aluminum Leg > --- UTILITY ---------- Small Storage Unit Visual Processing Unit Improved Terrain Scanner Seismic Detector > --- WEAPON ----------- Heavy Assault Rifle Heavy Assault Rifle > --- INVENTORY -------- Improved Aluminum Leg Improved Aluminum Leg Seismic Detector ECM Suite Beam Rifle Heavy Assault Rifle Rocket Launcher Datajack [Rating: 17] Favorites ----------- Power Ion Engine Engine Ion Engine Propulsion Improved Aluminum Leg Leg Improved Aluminum Leg Utility Small Storage Unit Device Seismic Detector Storage Small Storage Unit Processor Visual Processing Unit Weapon Heavy Assault Rifle Energy Gun Beam Rifle Ballistic Gun Heavy Assault Rifle Special Melee Weapon Datajack Build | -11 -10 -10 -9 ------- Run | Yrd Mat Min Mat Slots Evolved 2 | . . . 2 Power . | . . . . Propulsion . | . . . . Utility 2 | . . . 2 Weapon . | . . . . Parts Attached 25 | 7 6 2 10 Power 2 | 1 . . 1 Engine 2 | 1 . . 1 Core . | . . . . Reactor . | . . . . Propulsion 5 | 2 3 . . Treads . | . . . . Leg 5 | 2 3 . . Wheel . | . . . . Hover . | . . . . Flight . | . . . . Utility 6 | 2 . . 4 Device 4 | 1 . . 3 Storage 1 | 1 . . . Processor 1 | . . . 1 Hackware . | . . . . Protection . | . . . . Artifact . | . . . . Weapon 12 | 2 3 2 5 Energy Gun 2 | . . . 2 Energy Cannon . | . . . . Ballistic Gun 9 | 2 3 1 3 Ballistic Cannon . | . . . . Launcher . | . . . . Special Weapon . | . . . . Impact Weapon . | . . . . Slashing Weapon . | . . . . Piercing Weapon . | . . . . Special Melee Weapon 1 | . . 1 . Unidentified Prototypes . | . . . . Parts Lost 8 | . . . 8 Power 1 | . . . 1 Propulsion 2 | . . . 2 Utility 1 | . . . 1 Weapon 4 | . . . 4 Highest Loss Streak 7 | . . . 7 To Critical Strikes . | . . . . Average Slot Usage (%) 98 | . 100 100 95 Engine 12 | . 14 14 10 Leg 25 | . 28 28 19 Device 16 | . 14 14 22 Storage 13 | . 14 14 11 Processor 3 | . . . 9 Energy Gun 2 | . . . 9 Ballistic Gun 22 | . 28 27 12 Naked Turns . | . . . . Heaviest Build 20 | 15 17 17 20 Greatest Support 26 | 20 26 23 23 Greatest Overweight (x) 5 | . . . 5 Average Overweight (x) . | . . . . Largest Inventory Capacity 8 | 8 8 8 8 Average Capacity 7 | 7 8 8 8 Most Carried 8 | 4 8 8 8 Average Carried 7 | 2 7 7 7 Final Capacity 8 | 8 8 8 8 Final Carried 8 | 4 8 8 8 Class Distribution -------------------- 75% | Mutant 24% | Scavenger-Mutant Dominant Class ---------------- Mutant | -10/Materials Mutant | -10/Mines Scavenger-Mutant | -9/Materials Resources | -11 -10 -10 -9 ----------- Run | Yrd Mat Min Mat Matter Collected 860 | 243 320 87 210 Remotely . | . . . . Salvage Created 882 | 194 320 . 368 Parts 52 | 16 15 . 21 Haulers Intercepted . | . . . . Recyclers Shooed 4 | 1 1 . 2 Parts Field Recycled . | . . . . Retrieved Matter . | . . . . Parts Self-Destructed . | . . . . Prevented . | . . . . Kills | -11 -10 -10 -9 ------- Run | Yrd Mat Min Mat Combat Hostiles Destroyed 16 | . 6 . 10 Guns 16 | . 6 . 10 Classes Destroyed 8 | 2 2 . 4 Worker 1 | . 1 . . Tunneler 4 | 4 . . . Recycler 2 | 1 1 . . Operator 1 | . . . 1 Watcher 1 | . . . 1 Swarmer 3 | . . . 3 Grunt 12 | . 6 . 6 Sentry 1 | . . . 1 Best Kill Streak 5 | 5 3 . 3 Combat Bots Only 3 | . 2 . 3 Max Kills in Single Turn 2 | 2 1 . 1 Gunslinging . | . . . . Exploded . | . . . . Melee . | . . . . Uniques/NPCs Destroyed . | . . . . Combat | -11 -10 -10 -9 -------- Run | Yrd Mat Min Mat Hostile Shots Fired 146 | . 34 . 112 Missed 38 | . 11 . 27 Damage Taken 1357 | . 285 . 1072 Core 441 | . 37 . 404 Absorbed by Shields . | . . . . Core Remaining (%) 92 | 100 . 85 . Volleys Fired 107 | 14 36 . 57 Largest 2 | 2 2 . 2 Hottest 96 | 40 46 . 96 Shots Fired 210 | 28 72 . 110 Gun 210 | 28 72 . 110 Cannon . | . . . . Launcher . | . . . . Special . | . . . . Kinetic 154 | 28 72 . 54 Thermal 56 | . . . 56 Explosive . | . . . . Electromagnetic . | . . . . Robot Hit Streak 11 | 3 11 . 8 Robot Miss Streak 6 | 5 4 . 6 Penetration Max . | . . . . Secondary Targets . | . . . . Shots Hit Robots 125 | 13 44 . 68 Core Hits 46 | 6 16 . 24 Critical Kills . | . . . . Critical Parts Destroyed 1 | 1 . . . Critical Strikes 5 | 1 . . 4 Burn 4 | . . . 4 Destroy 1 | 1 . . . Melee Attacks . | . . . . Impact . | . . . . Slashing . | . . . . Piercing . | . . . . Sneak Attacks . | . . . . Combat Hostiles . | . . . . Follow-up Attacks . | . . . . Damage Inflicted 1889 | 181 665 . 1043 Guns 1874 | 181 665 . 1028 Cannons . | . . . . Explosions . | . . . . Melee . | . . . . Ramming 15 | . . . 15 Kinetic 1381 | 181 665 . 535 Thermal 493 | . . . 493 Explosive . | . . . . Electromagnetic . | . . . . Impact . | . . . . Slashing . | . . . . Piercing . | . . . . Highest Corruption . | . . . . Average Corruption . | . . . . Corruption Purged . | . . . . Corruption Blocked . | . . . . Overload Shots . | . . . . Overflow Damage . | . . . . Projectiles . | . . . . Explosions . | . . . . Melee . | . . . . Knockbacks . | . . . . Impact . | . . . . Kinetic . | . . . . Secondary . | . . . . Self-Inflicted Damage 7 | . . . 7 Shots . | . . . . Rammed 7 | . . . 7 Targets Rammed 7 | . . . 7 Kicked . | . . . . Crushed . | . . . . Highest Temperature 345 | . 4 . 345 Average Temperature 125 | . 2 . 140 Received Heat Transfer 630 | . 183 . 447 Effects 3 | . . . 3 Energy Bleed 2 | . . . 2 Interference 1 | . . . 1 Siege Activations . | . . . . Robots Corrupted . | . . . . Combat Hostiles . | . . . . Parts Fried . | . . . . Impact Corruptions . | . . . . Robots Melted . | . . . . Combat Hostiles . | . . . . Parts Melted 2 | . . . 2 Heat Transferred 1543 | . . . 1543 Parts Sabotaged . | . . . . Parts Stolen . | . . . . Parts Stripped . | . . . . Power Chain Reactions . | . . . . Alert | -11 -10 -10 -9 ------- Run | Yrd Mat Min Mat Peak Influence 262 | 25 262 24 237 Initial 24 | . 16 24 . Average 68 | 10 111 14 115 Maximum Alert Level 1 | . 1 . 1 Low Security (%) 89 | 100 78 100 80 Level 1 10 | . 21 . 19 Level 2 . | . . . . Level 3 . | . . . . Level 4 . | . . . . Level 5 . | . . . . High Security . | . . . . Max Security . | . . . . Squads Dispatched 1 | . . . 1 Investigation . | . . . . Extermination . | . . . . Reinforcement 1 | . . . 1 Assault . | . . . . Garrison . | . . . . Intercept . | . . . . Searches Triggered . | . . . . Construction Impeded . | . . . . Haulers Reinforced . | . . . . Active Scanning Responses . | . . . . Cargo Convoy Interrupts . | . . . . Stealth | -11 -10 -10 -9 --------- Run | Yrd Mat Min Mat Distress Signals 5 | . 1 . 4 Communications Jammed . | . . . . Distress Signals . | . . . . Times Spotted 39 | . 16 . 23 Peak Tracking Total 9 | . 4 . 9 Tactical Retreats 2 | . 1 . 1 Traps | -11 -10 -10 -9 ------- Run | Yrd Mat Min Mat Traps Triggered . | . . . . Indirectly . | . . . . Trap Hack Attempts . | . . . . Triggered . | . . . . Disarmed . | . . . . Reprogrammed . | . . . . Reused . | . . . . Traps Extracted . | . . . . Installed . | . . . . Triggered . | . . . . Machines | -11 -10 -10 -9 ---------- Run | Yrd Mat Min Mat Machines Disabled . | . . . . Max in Single Turn . | . . . . Machines Repaired . | . . . . Machines Dismantled . | . . . . Machines Sabotaged . | . . . . Overloaded Fab Kills . | . . . . Hacking | -11 -10 -10 -9 --------- Run | Yrd Mat Min Mat Machines Accessed 4 | . 3 . 1 Terminals 4 | . 3 . 1 Fabricators . | . . . . Repair Stations . | . . . . Recycling Units . | . . . . Scanalyzers . | . . . . Garrison Access . | . . . . Total Hacks 10 | . 8 . 2 Successful 5 | . 4 . 1 Failed 5 | . 4 . 1 Catastrophic . | . . . . Database Lockouts . | . . . . Manual 10 | . 8 . 2 Terminals 10 | . 8 . 2 Fabricators . | . . . . Repair Stations . | . . . . Recycling Units . | . . . . Scanalyzers . | . . . . Garrison Access . | . . . . Terminal Hacks . | . . . . Fabricator Hacks . | . . . . Repair Station Hacks . | . . . . Recycling Unit Hacks . | . . . . Scanalyzer . | . . . . Garrison Access Hacks . | . . . . Unauthorized Hacks 5 | . 4 . 1 Terminals 5 | . 4 . 1 Track 1 | . 1 . . Botnet 4 | . 3 . 1 Fabricators . | . . . . Repair Stations . | . . . . Recycling Units . | . . . . Scanalyzers . | . . . . Garrison Access . | . . . . Data Cores Recovered . | . . . . Used . | . . . . Hacking Detections 4 | . 3 . 1 Full Trace Events . | . . . . Feedback Events . | . . . . Feedback Blocked . | . . . . Robot Schematics Acquired . | . . . . Robots Built . | . . . . Authchips . | . . . . Time . | . . . . Total Robot Build Rating . | . . . . Part Schematics Acquired . | . . . . Parts Built . | . . . . Authchips . | . . . . Time . | . . . . Total Part Build Rating . | . . . . Parts Repaired . | . . . . Time . | . . . . Parts Recycled . | . . . . Recycled Matter . | . . . . Retrieved Matter . | . . . . Retrieved Components . | . . . . Parts Scanalyzed . | . . . . Part Schematics Acquired . | . . . . Parts Damaged . | . . . . Bothacking | -11 -10 -10 -9 ------------ Run | Yrd Mat Min Mat Used RIF Installer . | . . . . Robots Hacked . | . . . . Non-combat . | . . . . Combat . | . . . . Robot Hacks Applied . | . . . . Relay Couplers Released . | . . . . Fabnet Peak Effective % . | . . . . Robots Rewired . | . . . . Allies Hacked . | . . . . Hacks Repelled . | . . . . Allies | -11 -10 -10 -9 -------- Run | Yrd Mat Min Mat Total Allies 3 | . . 3 . Largest Group 3 | . . 3 3 Highest-Rated Group 40 | . . 40 40 Highest-Rated Ally 16 | . . 16 16 Total Orders . | . . . . Ally Attacks 27 | . . . 27 Total Damage 254 | . . . 254 Kills 3 | . . . 3 Allies Corrupted . | . . . . Allies Melted . | . . . . Intel | -11 -10 -10 -9 ------- Run | Yrd Mat Min Mat Robot Analysis Total . | . . . . Derelict Logs Recovered 1 | . . 1 . Drone Launches . | . . . . Drone Recoveries . | . . . . Exploration | -11 -10 -10 -9 ------------- Run | Yrd Mat Min Mat Turns Passed 1720 | 125 420 662 513 Spaces Moved 1028 | 58 232 543 195 Core 10 | 5 . . 5 Treads . | . . . . Legs 1018 | 53 232 543 190 Wheels . | . . . . Hover . | . . . . Flight . | . . . . Fastest Speed 50 | 50 120 120 100 Average Speed 119 | 113 120 120 120 Slowest Speed 300 | 120 120 120 300 Overloaded Moves . | . . . . Propulsion Burnouts . | . . . . Robots Hopped . | . . . . Cave-ins Triggered . | . . . . Exploration Rate (%) 40 | 3 37 99 21 Regions Visited 3 Branch Regions 1 Pre-discovered Areas . | . . . . Known Exits Taken . | . . . . Unknown Exits Taken 3 | 1 1 1 . Scrap Searched 2 | . . 2 . Spaces Dug . | . . . . Terrain Destroyed . | . . . . Melee . | . . . . Projectile . | . . . . AOE . | . . . . Terrain Rammed . | . . . . Walls Destroyed . | . . . . Machines Disabled . | . . . . Actions | -11 -10 -10 -9 --------- Run | Yrd Mat Min Mat Total 1305 | 89 302 553 361 Wait 104 | . 12 7 85 Move 1025 | 57 231 542 195 Hop . | . . . . Pick Up 25 | 11 9 1 4 Fast Attach 5 | . 3 . 2 Attach 10 | 7 . . 3 Detach . | . . . . Swap 10 | . 3 2 5 Drop 12 | . 8 1 3 Fire 107 | 14 36 . 57 Melee . | . . . . Ram 7 | . . . 7 Kick . | . . . . Crush . | . . . . Escape Stasis . | . . . . Rewire . | . . . . Trap . | . . . . Miscellaneous . | . . . . Route ------- -11/Scrapyard -10/Materials -10/Mines (discovered 3 exits: *Mat x2 / [*Sub]) -9/Materials (discovered 1 exit: [*Min]) History --------- Turn | Location | Event 4 | -11/Scrapyard | Discovered new exit (range 15) 126 | -11/Scrapyard | Entered Materials 315 | -10/Materials | Build established: Mutant 509 | -10/Materials | Discovered new exit (range 7) 546 | -10/Materials | Entered Mines 553 | -10/Mines | Received a Rocket Launcher from a helpful Derelict 568 | -10/Mines | Found a damaged Exp. Sensor Array with a note attached 650 | -10/Mines | YI-UF0 nonchalantly dropped a Grenade Launcher on the ground 703 | -10/Mines | Assisted by bots powering up and referring to "LRC-V3" 803 | -10/Mines | Discovered new exit (range 15) 811 | -10/Mines | Learned Materials garrison access intel 828 | -10/Mines | Discovered new exit (range 8) 1163 | -10/Mines | Discovered new exit (range 10) 1208 | -10/Mines | Entered Materials 1208 | -9/Materials | Accompanied by 3 allies 1208 | -9/Materials | Evolved 2 slots: Utility x2 1377 | -9/Materials | Discovered new exit (range 17) 1549 | -9/Materials | Build established: Scavenger-Mutant 1704 | -9/Materials | Core integrity fell below 50% 1715 | -9/Materials | Core integrity fell below 20% 1721 | -9/Materials | Destroyed by G-34 Mercenary with Small Laser Last Messages --------------- 01663_ G-34 Mercenary destroyed. 01667_ Imp. Aluminum Leg destroyed. 01667_ Critical hit (Burn: +37). 01670_ Aluminum Leg destroyed. 01681_ Overheating: Energy bleed (-42). 01687_ Y-45 Defender destroyed. 01690_ Y-45 Defender suffers critical hit (Burn). 01693_ Hvy. Assault Rifle destroyed. 01696_ Imp. Ion Engine destroyed. 01698_ Acquired Sml. Laser. 01703_ Beam Rifle destroyed. 01710_ Sml. Laser destroyed. 01710_ Slammed into G-34 Mercenary. 01711_ Seismic Detector destroyed. 01711_ Slammed into G-34 Mercenary. 01711_ Destabilizing: System interference. 01711_ Structural Scanner temporarily disabled. 01712_ Slammed into G-34 Mercenary. 01714_ Acquired 14 matter. 01714_ Slammed into G-34 Mercenary. Map ----- +----------------------------------------------------+ | ?????????????????????????????????????????????????? | | ?????????????????????????????????????????????????? | | ?????????????????????????????????????????????????? | | ?????????????????????????????????????????????????? | | ?????????????????????????????????????????????????? | | ?????????????????????????????????????????????????? | | ?????????????????????????????????????????????????? | | ?????????????????????????????????????????????????? | | ?????????????????????????????????????????????????? | | ?????????????????????????????????????????????????? | | ?????????????????????????????????????????????????? | | ?????????????????????????????????????????????????? | | ?????????????????????############????????????????? | | ?????????????????????############????????????????? | | ?????????????????????## ##????????????????? | | ?????????????????????## ##????????????????? | | ?????????????????????## ##????????????????? | | ?????????????????????## ##??????##### | | ?????????????????????## ##??????########### | | ?????????????????????## ########## | | ?????????????????????## ########## | | ??????????#########??## %[= #"""""""## | | ??????????############# %*=%[#" |"| "## ###+## | | ??????????## ######+#####+##" "## ## | | ??????????## % %% ## | | ??????????## %=@ ! < / "" | | ??????????## u u*=Yg% ## """ | | ??????????## #######g####### ##/#### """ | | ??????????### ######!*%= ############ ## """ | | ??????????### ###?## %"" ############ ## "" | | #??????????## ##??## T" ##????????## ## | | ??????????### ###?## "" ##????????## ## | | ??????????### = ###?## ##????????## ## | | ?????????### /%[ ##?## ##????????## ## | | ############!*T! ##?##########????????## ###### | | ############ "" ##?##########????????## ###### | | = ##???????????????????## + ???? | | ######### ##???????????????????########???? | | ########## ###???????????????????### ???? | | ##??? ? # ###??????????????????????????????? | | ##?????? + ???????????????????????????????? | | ###?????? # ?????????????????????????????? | | ###?????? # ????????????????????????????? | | ###?????? ####### ??????????????????????????? | | ##??????? ####### ?????????????????????????? | | ###????????#?????? ^ ???????????????????????? | | ##????????????????? ??????????????????????? | | ##?????????????????? ???????????????????????? | | ##?????????????????? ??????????????????????? | | ##?#????????????????? ??????????????????????? | +----------------------------------------------------+ Best States ------------- Heat Dissipation 28 Energy Generation 12 Energy Capacity 265 Matter Stores 300 Matter Capacity 300 Sight Range 18 Terrain Scan Range 16 Terrain Scan Density 10 ECM Strength 1 Evasion (%) 55 Item Schematics ----------------- None Robot Schematics ------------------ None Fabricated ------------ Nothing Alien Tech Used ----------------- None Achievements -------------- None Challenges ------------ None Game ------ Seed ModifiedConcussiveDoomcannon Manual? 0 Play Time 00:16:42 Cumulative 17.3 hours Start 2024.03.06 @ 15:52:11 End 2024.03.06 @ 16:08:18 Sessions 1 Manual Loads 0 Difficulty Rogue Special Mode None Game No. 24 Rogue 23 Adventurer 1 Explorer 0 Win Type - Total 0 Types 0/0/0/0/0/0/0/0/0 Lore% 20 Gallery% 18 Achievement% 20 Wizard Run 0 Options --------- Layout 0 ASCII 0 Keyboard 0 Movement Mouse Keybinds 0 Fullscreen 1 Font 20/X11 Map View 66x50 Zoom Use 0% Tactical HUD 1 Map Filters NONE Filters NONE Steam 1 RUN: 1f02111b-058b-4307-abee-aa01dfd2d857